[Event "Charlotte Fall IM-C 2023"]
[Site "Charlotte"]
[Date "2023.11.17"]
[Round "1.1"]
[White "Guo, Ethan"]
[Black "Vemparala, Nikash"]
[Result "1/2-1/2"]
[ECO "C50"]
[WhiteElo "2026"]
[BlackElo "2257"]
[Annotator "ChessBase"]
[PlyCount "115"]
[EventDate "2023.11.17"]
[EventType "tourn"]
[EventCountry "USA"]
[SourceTitle "playchess.com"]
[Source "ChessBase"]
[SourceQuality "1"]
[TimeControl "5400+30"]

1. e4 {[%emt 0:04:49]} e5 {[%emt 0:00:15]} 2. Nf3 {[%emt 0:00:08]} Nc6 {[%emt 0:00:13]} 3. Bc4 {[%emt 0:00:06]} Bc5 {[%emt 0:00:24]} 4. d3 {[%emt 0:00:20]} Nf6 {[%emt 0:00:40]} 5. Nc3 {[%emt 0:00:08]} d6 {[%emt 0:02:58]} 6. Na4 {[%emt 0:00:12]} a6 {[%emt 0:08:25]} 7. Nxc5 {[%emt 0:00:18]} dxc5 {[%emt 0:00:03]} 8. Be3 {[%emt 0:00:46]} Qe7 {[%emt 0:01:16]} 9. a3 {[%emt 0:01:06]} O-O {[%emt 0:08:32]} 10. h3 {[%emt 0:04:13]} b5 {[%emt 0:09:07]} 11. Ba2 {[%emt 0:00:26]} Bb7 {[%emt 0:02:32]} 12. g4 {[%emt 0:04:43]} Rad8 {[%emt 1:02:05]} 13. Qe2 {[%emt 0:01:31]} Nd4 {[%emt 0:00:00]} 14. Nxd4 {[%emt 0:02:46]} cxd4 {[%emt 0:00:00]} 15. Bd2 {[%emt 0:01:11]} Nd7 {[%emt 0:00:00]} 16. h4 {[%emt 0:03:12]} Kh8 {[%emt 0:00:00]} 17. h5 {[%emt 0:02:57]} c5 {[%emt 0:00:00]} 18. g5 {[%emt 0:03:39]} f5 {[%emt 0:00:00]} 19. f3 {[%emt 0:01:10]} f4 {[%emt 0:00:00]} 20. Rg1 {[%emt 0:01:28]} Rc8 {[%emt 0:00:00]} 21. Bb3 {[%emt 0:07:40]} Qe8 {[%emt 0:00:00]} 22. h6 {[%emt 0:02:22]} g6 {[%emt 0:00:00]} 23. a4 {[%emt 0:01:26]} Nb6 {[%emt 0:00:00]} 24. axb5 {[%emt 0:01:46]} axb5 {[%emt 0:00:00]} 25. Ra7 {[%emt 0:01:11]} Qc6 {[%emt 0:00:00]} 26. Bd5 {[%emt 0:01:32]} Nxd5 {[%emt 0:00:00]} 27. exd5 {[%emt 0:00:09]} Qxd5 {[%emt 0:00:00]} 28. Qe4 {[%emt 0:01:08]} Qxe4+ {[%emt 0:00:00]} 29. fxe4 {[%emt 0:00:10]} Rf7 {[%emt 0:00:00]} 30. Kf2 {[%emt 0:03:50]} c4 {[%emt 0:00:00]} 31. Rga1 {[%emt 0:01:14]} cxd3 {[%emt 0:01:00]} 32. cxd3 {[%emt 0:00:19]} Kg8 {[%emt 0:00:47]} 33. Rc1 {[%emt 0:01:07]} Rxc1 {[%emt 0:00:28]} 34. Bxc1 {[%emt 0:00:09]} Rc7 {[%emt 0:02:15]} 35. Bd2 {[%emt 0:01:45]} Kf7 {[%emt 0:01:54]} 36. Ba5 {[%emt 0:00:23]} Rd7 {[%emt 0:00:01]} 37. Bb4 {[%emt 0:00:35]} Ke6 {[%emt 0:02:04]} 38. Bc5 {[%emt 0:00:16]} Rc7 {[%emt 0:01:16]} 39. b4 {[%emt 0:00:47]} Kd7 {[%emt 0:00:44]} 40. Ra5 {[%emt 0:04:42]} Kc6 {[%emt 0:00:06]} 41. Ra7 {[%emt 0:00:12]} Rc8 {[%emt 0:01:12]} 42. Ra1 {[%emt 0:03:06]} Ra8 {[%emt 0:01:00]} 43. Rxa8 {[%emt 0:00:23]} Bxa8 {[%emt 0:00:01]} 44. Bf8 {[%emt 0:00:09]} Bb7 {[%emt 0:00:11]} 45. Bg7 {[%emt 0:00:07]} Kd6 {[%emt 0:00:02]} 46. Bf8+ {[%emt 0:00:17]} Ke6 {[%emt 0:00:02]} 47. Kf3 {[%emt 0:00:30]} Bc8 {[%emt 0:00:08]} 48. Kf2 {[%emt 0:00:09]} Bd7 {[%emt 0:00:23]} 49. Kf3 {[%emt 0:00:11]} Be8 {[%emt 0:00:52]} 50. Bg7 {[%emt 0:00:25]} Bf7 {[%emt 0:00:12]} 51. Kf2 {[%emt 0:00:38]} Kd6 {[%emt 0:00:10]} 52. Bf8+ {[%emt 0:00:04]} Ke6 {[%emt 0:02:15]} 53. Bg7 {[%emt 0:00:07]} Be8 {[%emt 0:00:22]} 54. Kf3 {[%emt 0:00:10]} Bc6 {[%emt 0:00:24]} 55. Kf2 {[%emt 0:00:26]} Bd7 {[%emt 0:00:01]} 56. Kf3 {[%emt 0:00:06]} Be8 {[%emt 0:01:37]} 57. Kf2 {[%emt 0:00:09]} Bf7 {[%emt 0:00:43]} 58. Kf3 {[%emt 0:00:13]} 1/2-1/2

[Event "Charlotte Fall IM-C 2023"]
[Site "Charlotte"]
[Date "2023.11.17"]
[Round "1.2"]
[White "Wang, Isaac"]
[Black "Lima, Darcy"]
[Result "1/2-1/2"]
[ECO "D20"]
[WhiteElo "2377"]
[BlackElo "2405"]
[Annotator "RC"]
[PlyCount "110"]
[EventDate "2023.11.17"]
[EventType "tourn"]
[EventCountry "USA"]
[SourceTitle "playchess.com"]
[Source "ChessBase"]
[SourceQuality "1"]
[TimeControl "5400+30"]

1. d4 {[%emt 0:00:10]} d5 {[%emt 0:00:22]} 2. c4 {[%emt 0:00:33]} dxc4 {[%emt 0:00:07]} 3. e4 {[%emt 0:00:20]} c5 {[%emt 0:00:09]} 4. d5 {[%emt 0:02:12]} Nf6 {[%emt 0:00:11]} 5. Nc3 {[%emt 0:03:47]} e6 {[%emt 0:00:22]} 6. Bxc4 {[%emt 0:00:57]} exd5 {[%emt 0:00:05]} 7. Nxd5 {[%emt 0:01:14]} Nxd5 {[%emt 0:00:09]} 8. Bxd5 {[%emt 0:00:49]} Be7 {[%emt 0:00:10]} 9. Nf3 {[%emt 0:04:24]} O-O {[%emt 0:00:28]} 10. O-O {[%emt 0:01:01]} Qb6 {[%emt 0:00:59]} 11. Be3 {[%emt 0:05:43]} Nc6 {[%emt 0:00:56]} 12. Qe2 {[%emt 0:03:32]} Be6 {[%emt 0:02:21]} 13. Rfd1 {[%emt 0:08:22]} Rfd8 {[%emt 0:30:11]} 14. Rac1 {[%emt 0:11:27]} Nb4 {[%emt 0:02:57]} 15. Qc4 {[%emt 0:09:17]} Bxd5 {[%emt 0:15:54]} 16. exd5 {[%emt 0:00:12]} Qg6 {[%emt 0:00:25]} 17. a3 {[%emt 0:10:12]} b5 {[%emt 0:06:39]} 18. Ne5 {[%emt 0:09:36]} Qf5 {[%emt 0:12:59]} 19. Qxb5 {[%emt 0:04:03]} Qxe5 {[%emt 0:00:20]} 20. axb4 {[%emt 0:00:11]} cxb4 {[%emt 0:04:07]} 21. b3 {[%emt 0:02:09]} h5 {[%emt 0:01:04]} 22. Qd3 {[%emt 0:05:02]} Rd7 {[%emt 0:01:25]} 23. f4 {[%emt 0:01:49]} Qf6 {[%emt 0:01:50]} 24. Rc6 {[%emt 0:04:20]} Bd6 {[%emt 0:00:09]} 25. Rf1 {[%emt 0:01:33]} Re8 {[%emt 0:03:52]} 26. Bd4 {[%emt 0:02:58]} Qd8 {[%emt 0:00:31]} 27. Qf5 {[%emt 0:04:02]} Bf8 {[%emt 0:01:44]} 28. d6 {[%emt 0:02:21]} g6 {[%emt 0:09:55]} 29. Qg5 {[%emt 0:01:37]} Qxg5 {[%emt 0:00:59]} 30. fxg5 {[%emt 0:00:02]} Bxd6 {[%emt 0:00:13]} 31. Bxa7 {[%emt 0:01:18]} Bxh2+ {[%emt 0:00:14]} 32. Kxh2 {[%emt 0:00:05]} Rxa7 {[%emt 0:00:02]} 33. Rc4 {[%emt 0:00:40]} Re5 {[%emt 0:00:50]} 34. Rxb4 {[%emt 0:00:14]} Rxg5 {[%emt 0:00:05]} 35. Rbf4 {[%emt 0:01:48]} Ra2 {[%emt 0:00:51]} 36. R1f2 {[%emt 0:00:00]} Rxf2 {[%emt 0:00:07]} 37. Rxf2 {[%emt 0:00:00]} Rb5 {[%emt 0:00:13]} 38. Rb2 {[%emt 0:00:00]} Rb4 {[%emt 0:02:54]} 39. Kg3 {[%emt 0:00:00]} g5 {[%emt 0:00:20]} 40. Kf3 {[%emt 0:00:00]} h4 {[%emt 0:00:21]} 41. Ke3 {[%emt 0:00:00]} Kg7 {[%emt 0:00:31]} 42. Kd3 {[%emt 0:00:06]} Kg6 {[%emt 0:00:36]} 43. Kc3 {[%emt 0:00:07]} Rb8 {[%emt 0:00:05]} 44. b4 {[%emt 0:00:16]} f5 {[%emt 0:00:16]} 45. b5 {[%emt 0:00:46]} g4 {[%emt 0:02:17]} 46. Kd4 {[%emt 0:01:01]} f4 {[%emt 0:00:55]} 47. Ke4 {[%emt 0:01:44]} Kg5 {[%emt 0:00:30]} 48. b6 {[%emt 0:00:34]} Re8+ {[%emt 0:00:56]} 49. Kd3 {[%emt 0:01:12]} f3 {[%emt 0:00:38]} 50. gxf3 {[%emt 0:00:42]} g3 {[%emt 0:00:01]} 51. Rb4 {[%emt 0:00:47]} Kh5 {[%emt 0:01:09]} 52. Rb5+ {[%emt 0:00:17]} Kg6 {[%emt 0:00:34]} 53. Rb4 {[%emt 0:00:17]} Kh5 {[%emt 0:00:00]} 54. Rb5+ {[%emt 0:00:06]} Kg6 {[%emt 0:00:05]} 55. Rb4 {[%emt 0:00:04]} Kh5 {[%emt 0:01:24]} 1/2-1/2

[Event "Charlotte Fall IM-C 2023"]
[Site "Charlotte"]
[Date "2023.11.17"]
[Round "1.3"]
[White "Fierro Baquero, Martha L."]
[Black "Martin Del Campo Cardenas, Roberto Abel"]
[Result "0-1"]
[ECO "A25"]
[WhiteElo "2306"]
[BlackElo "2212"]
[Annotator "RC"]
[PlyCount "112"]
[EventDate "2023.11.17"]
[EventType "tourn"]
[EventCountry "USA"]
[SourceTitle "playchess.com"]
[Source "ChessBase"]
[SourceQuality "1"]
[TimeControl "5400+30"]

1. g3 {[%emt 0:00:23]} g6 {[%emt 0:00:21]} 2. Bg2 {[%emt 0:00:07]} Bg7 {[%emt 0:00:06]} 3. c4 {[%emt 0:00:07]} Nf6 {[%emt 0:00:20]} 4. Nc3 {[%emt 0:00:07]} O-O {[%emt 0:00:09]} 5. d3 {[%emt 0:00:11]} d6 {[%emt 0:00:09]} 6. Rb1 {[%emt 0:00:26]} a5 {[%emt 0:01:48]} 7. a3 {[%emt 0:00:22]} e5 {[%emt 0:03:16]} 8. b4 {[%emt 0:03:03]} axb4 {[%emt 0:03:17]} 9. axb4 {[%emt 0:00:06]} Nc6 {[%emt 0:02:30]} 10. b5 {[%emt 0:03:42]} Nd4 {[%emt 0:04:57]} 11. e3 {[%emt 0:02:31]} Nf5 {[%emt 0:08:13]} 12. Nge2 {[%emt 0:08:13]} Rb8 {[%emt 0:05:40]} 13. O-O {[%emt 0:01:31]} b6 {[%emt 0:16:10]} 14. Bb2 {[%emt 0:09:07]} Bb7 {[%emt 0:06:58]} 15. Nd5 {[%emt 0:00:07]} Nxd5 {[%emt 0:11:54]} 16. cxd5 {[%emt 0:00:06]} Ne7 {[%emt 0:05:25]} 17. Qb3 {[%emt 0:06:56]} f5 {[%emt 0:02:21]} 18. f4 {[%emt 0:01:03]} Rf7 {[%emt 0:00:43]} 19. e4 {[%emt 0:05:50]} Bc8 {[%emt 0:03:22]} 20. Kh1 {[%emt 0:07:21]} Bd7 {[%emt 0:07:48]} 21. fxe5 {[%emt 0:06:37]} dxe5 {[%emt 0:01:23]} 22. d4 {[%emt 0:00:05]} exd4 {[%emt 0:02:55]} 23. Nxd4 {[%emt 0:04:25]} Qe8 {[%emt 0:04:40]} 24. Ne6 {[%emt 0:03:42]} Bxb2 {[%emt 0:02:30]} 25. Rxb2 {[%emt 0:06:59]} fxe4 {[%emt 0:01:54]} 26. Rxf7 {[%emt 0:03:17]} Qxf7 {[%emt 0:00:08]} 27. Ng5 {[%emt 0:01:59]} Qxd5 {[%emt 0:00:20]} 28. Nxe4 {[%emt 0:02:49]} Qxb3 {[%emt 0:00:20]} 29. Rxb3 {[%emt 0:00:04]} Rf8 {[%emt 0:01:02]} 30. Kg1 {[%emt 0:00:49]} Kg7 {[%emt 0:00:59]} 31. Rc3 {[%emt 0:02:19]} c5 {[%emt 0:00:47]} 32. bxc6 {[%emt 0:00:10]} Bxc6 {[%emt 0:00:02]} 33. Ng5 {[%emt 0:01:12]} Rf6 {[%emt 0:00:28]} 34. Re3 {[%emt 0:02:08]} Nf5 {[%emt 0:00:24]} 35. Re5 {[%emt 0:01:52]} Bxg2 {[%emt 0:00:26]} 36. Kxg2 {[%emt 0:00:09]} Rc6 {[%emt 0:00:20]} 37. Re2 {[%emt 0:02:18]} h6 {[%emt 0:00:26]} 38. Ne6+ {[%emt 0:00:50]} Kf6 {[%emt 0:00:14]} 39. Nf4 {[%emt 0:00:31]} Rd6 {[%emt 0:01:04]} 40. Rb2 {[%emt 0:03:17]} g5 {[%emt 0:01:31]} 41. Ne2 {[%emt 0:01:04]} Rc6 {[%emt 0:00:21]} 42. Rb5 {[%emt 0:01:20]} Nd6 {[%emt 0:00:27]} 43. Rb4 {[%emt 0:03:39]} b5 {[%emt 0:00:17]} 44. Kf3 {[%emt 0:00:54]} Ke5 {[%emt 0:00:46]} 45. Ke3 {[%emt 0:01:02]} Rc4 {[%emt 0:00:36]} 46. Rb1 {[%emt 0:00:05]} Ra4 {[%emt 0:01:17]} 47. Nc3 {[%emt 0:03:13]} Ra3 {[%emt 0:00:36]} 48. Kd2 {[%emt 0:00:19]} Ne4+ {[%emt 0:00:25]} 49. Nxe4 {[%emt 0:00:49]} Kxe4 {[%emt 0:00:03]} 50. Rxb5 {[%emt 0:01:32]} Ra2+ {[%emt 0:00:05]} 51. Ke1 {[%emt 0:00:52]} Rxh2 {[%emt 0:00:08]} 52. Rb3 {[%emt 0:01:18]} Kf5 {[%emt 0:00:12]} 53. Kf1 {[%emt 0:01:17]} Kg4 {[%emt 0:00:04]} 54. Kg1 {[%emt 0:00:32]} Ra2 {[%emt 0:00:09]} 55. Rc3 {[%emt 0:01:35]} Kh3 {[%emt 0:00:24]} 56. Rb3 {[%emt 0:00:21]} Rg2+ {[%emt 0:01:22]} 0-1

[Event "Charlotte Fall IM-C 2023"]
[Site "Charlotte"]
[Date "2023.11.17"]
[Round "1.4"]
[White "Graif, William"]
[Black "Bhagat Kush"]
[Result "*"]
[ECO "B76"]
[WhiteElo "2289"]
[BlackElo "2209"]
[Annotator "RC"]
[PlyCount "40"]
[EventDate "2023.11.17"]
[EventType "tourn"]
[EventCountry "USA"]
[SourceTitle "playchess.com"]
[Source "ChessBase"]
[SourceQuality "1"]
[TimeControl "5400+30"]

1. e4 {[%emt 0:00:03]} c5 {[%emt 0:00:07]} 2. Nf3 {[%emt 0:00:06]} d6 {[%emt 0:00:07]} 3. d4 {[%emt 0:00:04]} cxd4 {[%emt 0:00:07]} 4. Nxd4 {[%emt 0:00:05]} Nf6 {[%emt 0:00:10]} 5. Nc3 {[%emt 0:00:04]} g6 {[%emt 0:00:32]} 6. Be3 {[%emt 0:00:47]} Bg7 {[%emt 0:00:08]} 7. f3 {[%emt 0:00:07]} O-O {[%emt 0:00:06]} 8. Qd2 {[%emt 0:00:08]} Nc6 {[%emt 0:00:07]} 9. O-O-O {[%emt 0:01:22]} Nxd4 {[%emt 0:06:59]} 10. Bxd4 {[%emt 0:00:11]} Be6 {[%emt 0:00:03]} 11. Kb1 {[%emt 0:00:59]} Qc7 {[%emt 0:00:06]} 12. h4 {[%emt 0:00:10]} Rfc8 {[%emt 0:00:06]} 13. h5 {[%emt 0:00:07]} Qa5 {[%emt 0:00:20]} 14. hxg6 {[%emt 0:00:07]} fxg6 {[%emt 0:00:44]} 15. a3 {[%emt 0:00:06]} Rab8 {[%emt 0:02:42]} 16. Qe3 {[%emt 0:01:33]} Bf7 {[%emt 0:04:25]} 17. Nb5 {[%emt 0:00:28]} Ra8 {[%emt 0:18:44]} 18. g4 {[%emt 0:23:50]} Qa4 {[%emt 0:21:49]} 19. Nc3 {[%emt 1:09:43]} Qa5 {[%emt 0:02:36]} 20. g5 {[%emt 0:02:19]} Ne8 {[%emt 0:04:55]} *

[Event "Charlotte Fall IM-C 2023"]
[Site "Charlotte"]
[Date "2023.11.17"]
[Round "1.5"]
[White "Nandhakumar, Vaseegaran"]
[Black "Song, Ethan"]
[Result "1-0"]
[ECO "A07"]
[WhiteElo "2177"]
[BlackElo "2176"]
[Annotator "ChessBase"]
[PlyCount "129"]
[EventDate "2023.11.17"]
[EventType "tourn"]
[EventCountry "USA"]
[SourceTitle "playchess.com"]
[Source "ChessBase"]
[SourceQuality "1"]
[TimeControl "5400+30"]

1. Nf3 {[%emt 0:00:02]} d5 {[%emt 0:00:14]} 2. g3 {[%emt 0:00:04]} Nf6 {[%emt 0:00:12]} 3. Bg2 {[%emt 0:00:06]} g6 {[%emt 0:00:09]} 4. O-O {[%emt 0:00:06]} Bg7 {[%emt 0:00:02]} 5. d3 {[%emt 0:00:27]} O-O {[%emt 0:00:06]} 6. Nc3 {[%emt 0:00:01]} d4 {[%emt 0:03:25]} 7. Na4 {[%emt 0:03:26]} Nc6 {[%emt 0:02:20]} 8. c4 {[%emt 0:00:17]} dxc3 {[%emt 0:02:12]} 9. Nxc3 {[%emt 0:05:18]} e5 {[%emt 0:06:22]} 10. Qa4 {[%emt 0:10:27]} Nd7 {[%emt 0:04:30]} 11. Bg5 {[%emt 0:09:17]} Qe8 {[%emt 0:04:50]} 12. Qh4 {[%emt 0:21:20]} f6 {[%emt 0:05:53]} 13. Bh6 {[%emt 0:06:50]} Nb6 {[%emt 0:01:42]} 14. Bxg7 {[%emt 0:02:52]} Kxg7 {[%emt 0:00:06]} 15. Qe4 {[%emt 0:01:36]} Be6 {[%emt 0:09:24]} 16. Rac1 {[%emt 0:08:21]} Rd8 {[%emt 0:03:15]} 17. Rfd1 {[%emt 0:03:19]} Qf7 {[%emt 0:02:39]} 18. b3 {[%emt 0:03:37]} Rfe8 {[%emt 0:02:33]} 19. Qe3 {[%emt 0:02:04]} Nb4 {[%emt 0:07:42]} 20. Qc5 {[%emt 0:01:48]} Na6 {[%emt 0:03:23]} 21. Qa3 {[%emt 0:00:23]} c6 {[%emt 0:04:37]} 22. d4 {[%emt 0:01:57]} exd4 {[%emt 0:03:32]} 23. Nxd4 {[%emt 0:00:30]} Bc8 {[%emt 0:01:14]} 24. e3 {[%emt 0:03:02]} Qf8 {[%emt 0:01:28]} 25. Qb2 {[%emt 0:02:11]} Nc5 {[%emt 0:01:31]} 26. b4 {[%emt 0:01:11]} Ne6 {[%emt 0:00:53]} 27. Ne4 {[%emt 0:01:05]} Nxd4 {[%emt 0:03:46]} 28. Rxd4 {[%emt 0:00:09]} Rxd4 {[%emt 0:02:45]} 29. Qxd4 {[%emt 0:00:02]} Rd8 {[%emt 0:00:46]} 30. Qb2 {[%emt 0:00:31]} Nd5 {[%emt 0:01:51]} 31. a3 {[%emt 0:00:25]} Qe7 {[%emt 0:02:31]} 32. Nc3 {[%emt 0:02:35]} Nxc3 {[%emt 0:00:59]} 33. Qxc3 {[%emt 0:00:09]} Be6 {[%emt 0:00:31]} 34. h4 {[%emt 0:00:37]} Bd5 {[%emt 0:02:22]} 35. e4 {[%emt 0:00:32]} Bf7 {[%emt 0:00:21]} 36. Qe3 {[%emt 0:00:56]} a6 {[%emt 0:02:13]} 37. Rc5 {[%emt 0:02:34]} Rd6 {[%emt 0:03:13]} 38. Bh3 {[%emt 0:01:00]} b6 {[%emt 0:02:35]} 39. Rc1 {[%emt 0:00:17]} Qd8 {[%emt 0:02:10]} 40. Bg4 {[%emt 0:02:27]} Rd3 {[%emt 0:01:08]} 41. Qf4 {[%emt 0:07:09]} Rd6 {[%emt 0:01:37]} 42. Bf3 {[%emt 0:00:00]} Re6 {[%emt 0:01:30]} 43. Bg4 {[%emt 0:00:00]} Rd6 {[%emt 0:00:10]} 44. e5 {[%emt 0:00:00]} fxe5 {[%emt 0:00:47]} 45. Qxe5+ {[%emt 0:00:00]} Qf6 {[%emt 0:01:04]} 46. Qe3 {[%emt 0:00:00]} Qd4 {[%emt 0:01:06]} 47. Qxd4+ {[%emt 0:00:00]} Rxd4 {[%emt 0:00:06]} 48. Be2 {[%emt 0:00:00]} Bd5 {[%emt 0:02:25]} 49. Bxa6 {[%emt 0:00:00]} Bf3 {[%emt 0:02:11]} 50. Bb7 {[%emt 0:00:00]} Rd6 {[%emt 0:00:53]} 51. b5 {[%emt 0:00:00]} Rd7 {[%emt 0:00:21]} 52. Bxc6 {[%emt 0:00:00]} Bxc6 {[%emt 0:00:18]} 53. bxc6 {[%emt 0:00:00]} Rc7 {[%emt 0:00:06]} 54. g4 {[%emt 0:00:00]} Kf7 {[%emt 0:00:09]} 55. Kf1 {[%emt 0:00:01]} Ke7 {[%emt 0:00:12]} 56. Ke2 {[%emt 0:00:12]} Kd8 {[%emt 0:00:24]} 57. f4 {[%emt 0:00:21]} Ra7 {[%emt 0:00:06]} 58. Rc3 {[%emt 0:00:09]} Ra5 {[%emt 0:00:17]} 59. Kf3 {[%emt 0:00:29]} Kc7 {[%emt 0:00:03]} 60. Ke4 {[%emt 0:00:14]} h5 {[%emt 0:00:07]} 61. f5 {[%emt 0:00:15]} Ra4+ {[%emt 0:00:29]} 62. Ke5 {[%emt 0:00:04]} Rxg4 {[%emt 0:00:46]} 63. f6 {[%emt 0:00:04]} Rg1 {[%emt 0:00:18]} 64. f7 {[%emt 0:00:10]} Rf1 {[%emt 0:00:07]} 65. Ke6 {[%emt 0:00:01]} 1-0

[Event "Charlotte Fall IM-C 2023"]
[Site "Charlotte"]
[Date "2023.11.18"]
[Round "2.1"]
[White "Vemparala, Nikash"]
[Black "Song, Ethan"]
[Result "1-0"]
[ECO "C54"]
[WhiteElo "2257"]
[BlackElo "2176"]
[Annotator "ChessBase"]
[PlyCount "131"]
[EventDate "2023.11.17"]
[EventType "tourn"]
[EventCountry "USA"]
[SourceTitle "playchess.com"]
[Source "ChessBase"]
[SourceQuality "1"]
[TimeControl "5400+30"]

1. e4 {[%emt 0:00:29]} e5 {[%emt 0:00:56]} 2. Nf3 {[%emt 0:00:06]} Nc6 {[%emt 0:00:14]} 3. Bc4 {[%emt 0:00:07]} Nf6 {[%emt 0:00:19]} 4. d3 {[%emt 0:00:48]} Bc5 {[%emt 0:00:41]} 5. O-O {[%emt 0:00:16]} h6 {[%emt 0:00:11]} 6. c3 {[%emt 0:01:46]} d6 {[%emt 0:00:14]} 7. a4 {[%emt 0:01:25]} a6 {[%emt 0:00:40]} 8. Nbd2 {[%emt 0:00:31]} O-O {[%emt 0:00:48]} 9. h3 {[%emt 0:01:26]} Ba7 {[%emt 0:04:29]} 10. Re1 {[%emt 0:02:25]} Be6 {[%emt 0:01:11]} 11. Bb3 {[%emt 0:07:50]} Bxb3 {[%emt 0:07:25]} 12. Qxb3 {[%emt 0:00:16]} Qd7 {[%emt 0:01:41]} 13. Nf1 {[%emt 0:02:07]} Kh7 {[%emt 0:06:55]} 14. Be3 {[%emt 0:03:26]} Bxe3 {[%emt 0:06:59]} 15. Nxe3 {[%emt 0:01:06]} b6 {[%emt 0:01:17]} 16. Qc2 {[%emt 0:02:19]} g6 {[%emt 0:03:14]} 17. Rad1 {[%emt 0:03:14]} Rfe8 {[%emt 0:01:29]} 18. Nh2 {[%emt 0:12:19]} Kg7 {[%emt 0:06:54]} 19. Rf1 {[%emt 0:05:13]} Nh5 {[%emt 0:01:45]} 20. d4 {[%emt 0:10:32]} Nf4 {[%emt 0:02:15]} 21. Rfe1 {[%emt 0:01:45]} Qe7 {[%emt 0:05:12]} 22. Nf3 {[%emt 0:07:52]} exd4 {[%emt 0:09:58]} 23. Nd5 {[%emt 0:00:34]} d3 {[%emt 0:03:49]} 24. Rxd3 {[%emt 0:04:10]} Nxd3 {[%emt 0:01:21]} 25. Nxe7 {[%emt 0:00:08]} Nxe1 {[%emt 0:00:04]} 26. Nxe1 {[%emt 0:00:16]} Rxe7 {[%emt 0:00:15]} 27. Nf3 {[%emt 0:01:54]} Rd8 {[%emt 0:02:59]} 28. Qd3 {[%emt 0:03:50]} a5 {[%emt 0:00:48]} 29. Qd5 {[%emt 0:00:48]} Nb8 {[%emt 0:04:00]} 30. Nd4 {[%emt 0:01:58]} Rde8 {[%emt 0:02:40]} 31. f3 {[%emt 0:01:07]} Na6 {[%emt 0:01:10]} 32. Nc6 {[%emt 0:04:31]} Re6 {[%emt 0:01:10]} 33. b4 {[%emt 0:02:30]} axb4 {[%emt 0:02:13]} 34. cxb4 {[%emt 0:00:28]} Nb8 {[%emt 0:03:01]} 35. a5 {[%emt 0:02:07]} bxa5 {[%emt 0:01:45]} 36. bxa5 {[%emt 0:00:23]} Nxc6 {[%emt 0:03:57]} 37. Qxc6 {[%emt 0:00:03]} Rc8 {[%emt 0:00:15]} 38. a6 {[%emt 0:01:31]} Ree8 {[%emt 0:00:29]} 39. a7 {[%emt 0:00:17]} h5 {[%emt 0:00:51]} 40. h4 {[%emt 0:02:45]} Kf6 {[%emt 0:03:53]} 41. Kf2 {[%emt 0:01:17]} Kg7 {[%emt 0:00:42]} 42. Kg3 {[%emt 0:00:16]} Kh6 {[%emt 0:00:50]} 43. Kf4 {[%emt 0:04:23]} Kg7 {[%emt 0:01:36]} 44. g4 {[%emt 0:01:20]} Kh6 {[%emt 0:02:52]} 45. gxh5 {[%emt 0:01:12]} Kxh5 {[%emt 0:00:16]} 46. Kg3 {[%emt 0:00:54]} Kh6 {[%emt 0:00:31]} 47. Kg4 {[%emt 0:00:33]} Rf8 {[%emt 0:00:56]} 48. h5 {[%emt 0:01:29]} gxh5+ {[%emt 0:00:38]} 49. Kf5 {[%emt 0:00:12]} Kh7 {[%emt 0:03:25]} 50. Kf6 {[%emt 0:02:10]} Rg8 {[%emt 0:00:51]} 51. Qd5 {[%emt 0:01:50]} Rg6+ {[%emt 0:00:44]} 52. Ke7 {[%emt 0:01:46]} c6 {[%emt 0:02:15]} 53. Qxh5+ {[%emt 0:01:05]} Kg7 {[%emt 0:00:03]} 54. Kd7 {[%emt 0:00:36]} Ra8 {[%emt 0:00:16]} 55. Qa5 {[%emt 0:00:48]} Re6 {[%emt 0:00:31]} 56. Qb6 {[%emt 0:01:02]} d5 {[%emt 0:01:45]} 57. Qd4+ {[%emt 0:00:42]} Kh7 {[%emt 0:00:40]} 58. e5 {[%emt 0:00:35]} Kg7 {[%emt 0:00:38]} 59. f4 {[%emt 0:00:32]} Kg8 {[%emt 0:00:31]} 60. f5 {[%emt 0:00:26]} Ree8 {[%emt 0:00:10]} 61. f6 {[%emt 0:00:36]} Kh7 {[%emt 0:00:13]} 62. Qh4+ {[%emt 0:00:11]} Kg6 {[%emt 0:00:07]} 63. Qg4+ {[%emt 0:00:03]} Kh6 {[%emt 0:00:03]} 64. Qg7+ {[%emt 0:00:04]} Kh5 {[%emt 0:00:05]} 65. Qxf7+ {[%emt 0:00:10]} Kg4 {[%emt 0:00:03]} 66. Qxe8 {[%emt 0:00:13]} 1-0